bitfinex/quotes_SOLUSD_20241226
["timestamp","ask_amount","ask_price","bid_price","bid_amount"]
[1735186780585,15.74939999,195.33,195.26,14.16969999]
[1735186780782,16.44953625,195.33,195.25,34.16969999]
[1735186781273,14.16969999,195.32,195.25,20.0]
[1735186781474,14.16969999,195.31,195.24,14.16969999]
[1735186781785,14.16969999,195.32,195.24,14.16969999]
[1735186782572,14.16969999,195.32,195.25,14.93774609]
[1735186782792,15.74939999,195.33,195.25,14.93774609]
[1735186783002,14.16969999,195.3,195.23,20.0]
[1735186783301,14.16969999,195.3,195.23,34.16969999]
[1735186783471,14.86983625,195.29,195.23,20.0]
[1735186784391,14.86983625,195.29,195.21,14.16969999]
[1735186784903,14.16969999,195.28,195.2,14.16969999]
[1735186785109,14.86983625,195.27,195.2,14.16969999]
[1735186786473,14.16969999,195.27,195.2,14.16969999]
[1735186786673,14.16969999,195.29,195.2,14.16969999]
[1735186786973,0.70013626,195.28,195.2,14.16969999]
[1735186788296,0.70013626,195.28,195.19,0.7682494]
[1735186788297,14.29518999,195.27,195.19,0.7682494]
[1735186788606,14.16969999,195.23,195.16,14.16969999]
[1735186789173,14.16969999,195.17,195.13,0.76840169]
[1735186789380,14.16969999,195.17,195.09,14.16969999]
[1735186789890,0.70013626,195.16,195.09,14.16969999]
[1735186790089,14.16969999,195.17,195.09,14.16969999]
[1735186790789,0.70013626,195.16,195.09,14.16969999]
[1735186791115,14.16969999,195.11,195.0,1.5725]
[1735186791399,14.16969999,195.11,195.04,14.16969999]
[1735186791576,14.16969999,195.13,195.06,14.16969999]
[1735186791776,22.34739999,195.15,195.08,14.16969999]
[1735186792082,20.69389999,195.15,195.08,14.16969999]
[1735186794285,20.69389999,195.15,195.05,20.0]
[1735186794286,14.16969999,195.13,195.05,20.0]
[1735186794610,14.16969999,195.1,195.02,14.16969999]
[1735186795874,0.70013626,195.09,195.02,14.16969999]
[1735186796305,14.16969999,195.08,195.0,14.16969999]
[1735186796577,0.70013626,195.07,195.0,14.16969999]
[1735186798217,14.16969999,195.08,195.0,14.16969999]
[1735186798722,2.36083626,195.11,195.02,14.16969999]
[1735186799015,14.16969999,195.1,195.02,14.16969999]
[1735186799313,14.86983625,195.1,195.02,14.16969999]
[1735186800883,14.16969999,195.08,195.0,14.93866576]
[1735186801515,14.16969999,195.08,195.0,14.16969999]
[1735186801887,14.16969999,195.1,195.0,14.16969999]
[1735186802084,0.70013626,195.09,195.0,14.16969999]
[1735186802298,14.86983625,195.1,195.0,14.16969999]
[1735186802499,14.29518999,195.04,194.96,312.0]
[1735186802814,14.16969999,195.02,194.93,14.16969999]
[1735186802987,14.16969999,195.02,194.93,14.93890729]
[1735186803189,14.16969999,195.02,194.93,0.7692073]
[1735186803401,14.16969999,195.02,194.93,14.93890729]
[1735186803602,0.70013626,195.01,194.93,14.16969999]
[1735186804102,20.58259999,195.0,194.91,14.16969999]
[1735186804292,14.16969999,194.98,194.89,14.16969999]
[1735186804499,14.16969999,194.96,194.89,14.16969999]
[1735186805414,0.70013626,194.95,194.89,14.16969999]
[1735186805615,14.16969999,194.96,194.89,14.16969999]
[1735186808220,14.16969999,194.98,194.91,14.16969999]
[1735186808425,20.58259999,195.0,194.93,14.16969999]
[1735186809827,1.6607,195.02,194.94,23.776884]
[1735186809989,14.16969999,195.04,194.96,14.16969999]
[1735186810197,14.16969999,195.04,194.97,14.93880489]
[1735186812235,6.0538,195.05,194.99,14.16969999]
[1735186812435,15.69399999,195.07,194.99,14.16969999]
[1735186812639,14.16969999,195.08,195.0,38.71557605]
[1735186813056,14.16969999,195.07,195.0,38.71557605]
[1735186813211,14.16969999,195.07,195.0,14.93869205]
[1735186813548,14.16969999,195.06,194.99,23.776884]
[1735186814028,14.16969999,195.05,194.98,0.76896339]
[1735186814231,14.16969999,195.05,194.98,23.776884]
[1735186814737,14.16969999,195.05,194.98,37.94658399]
[1735186816035,14.16969999,195.05,194.98,14.16969999]
[1735186816333,14.16969999,195.05,194.96,14.16969999]
[1735186817347,14.16969999,195.03,194.96,14.16969999]
[1735186817520,14.16969999,195.03,194.97,0.76909084]
[1735186817818,14.16969999,195.05,194.97,0.76909084]
[1735186823349,14.16969999,195.07,194.98,37.94658399]
[1735186823550,14.16969999,195.07,194.99,0.76898463]
[1735186823749,0.70013626,195.06,194.98,67.94658399]
[1735186823912,14.16969999,195.07,195.0,14.93877322]
[1735186825245,14.16969999,195.09,195.0,14.93877322]
[1735186825553,14.16969999,195.07,195.0,14.93877322]
[1735186826255,14.16969999,195.07,195.0,14.16969999]
[1735186826636,14.16969999,195.05,194.98,0.76901883]
[1735186826826,14.16969999,195.04,194.97,14.93878366]
[1735186827452,0.70013626,195.09,195.01,14.16969999]
[1735186827658,20.22349999,195.1,195.03,14.16969999]
[1735186827844,14.16969999,195.11,195.03,14.16969999]
[1735186828045,14.16969999,195.1,195.03,14.16969999]
[1735186828343,14.16969999,195.09,195.02,14.93856619]
[1735186828551,14.16969999,195.09,195.02,0.7688662]
[1735186828716,14.16969999,195.08,195.02,0.7688662]
[1735186828922,14.16969999,195.08,195.02,23.776884]
[1735186830455,14.16969999,195.09,195.02,23.776884]
[1735186830633,2.22443626,195.12,195.01,14.93859992]
[1735186830634,14.16969999,195.07,195.01,14.93859992]
[1735186830837,14.16969999,195.08,195.02,37.94658399]
[1735186831045,14.16969999,195.08,195.03,0.76885547]
[1735186831956,14.16969999,195.08,195.02,37.94658399]
[1735186831957,14.16969999,195.08,195.02,14.16969999]
[1735186832244,14.16969999,195.06,194.99,20.0]
[1735186832455,14.16969999,195.06,194.98,14.16969999]
[1735186832456,14.16969999,195.06,194.98,14.93873183]
[1735186833951,14.16969999,195.06,194.99,23.776884]
[1735186834270,14.16969999,195.08,195.01,23.776884]
[1735186834443,14.16969999,195.1,195.03,23.776884]
[1735186834634,14.16969999,195.1,195.04,0.76879752]
[1735186835748,14.16969999,195.1,195.05,23.776884]
[1735186836329,14.16969999,195.12,195.05,23.776884]
[1735186836755,14.16969999,195.12,195.06,0.76874291]
[1735186837052,14.16969999,195.15,195.07,37.94658399]
[1735186837857,8.2533,195.21,195.12,14.16969999]
[1735186838151,14.16969999,195.21,195.14,14.16969999]
[1735186838456,14.16969999,195.21,195.14,14.93808358]
[1735186838660,14.16969999,195.2,195.14,0.76838359]
[1735186839460,14.16969999,195.21,195.14,14.93808358]
[1735186840760,14.16969999,195.2,195.14,0.76838359]
[1735186842072,14.16969999,195.21,195.14,14.93808358]
[1735186844465,14.16969999,195.22,195.14,14.93808358]
[1735186845240,14.16969999,195.21,195.14,14.93808358]
[1735186846661,14.16969999,195.2,195.14,0.76838359]
[1735186847066,14.16969999,195.21,195.14,14.93808358]
[1735186848346,14.16969999,195.22,195.15,14.16969999]
[1735186849376,14.16969999,195.19,195.13,0.76839807]
[1735186849538,14.16969999,195.17,195.11,1.6459]
[1735186849738,14.16969999,195.16,195.11,1.6459]
[1735186849958,14.16969999,195.16,195.08,14.16969999]
[1735186850157,9.08503617,195.16,195.08,9.08503617]
[1735186851042,9.08503617,195.15,195.08,9.08503617]
[1735186851545,9.08503617,195.16,195.08,9.08503617]
[1735186852047,9.08503617,195.14,195.08,9.08503617]
[1735186852239,14.19769994,195.14,195.07,14.19769994]
[1735186853049,0.70013626,195.13,195.07,14.19769994]
[1735186853657,14.19769994,195.14,195.07,14.19769994]
[1735186854059,14.8978362,195.16,195.08,23.776884]
[1735186854264,14.19769994,195.15,195.08,23.776884]
[1735186854944,0.70013626,195.14,195.08,23.776884]
[1735186855144,14.19769994,195.13,195.06,1.6459]
[1735186855351,0.70013626,195.12,195.04,14.19769994]
[1735186856566,0.70013626,195.12,195.05,23.776884]
[1735186857466,14.19769994,195.13,195.06,14.96651414]
[1735186857780,14.19769994,195.17,195.1,37.97458394]
[1735186857945,18.97129079,195.3,195.01,139.96774267]
[1735186857946,14.19769994,195.19,195.12,23.776884]
[1735186858150,14.19769994,195.2,195.12,37.97458394]
[1735186858349,6.72953626,195.23,195.12,37.97458394]
[1735186858350,14.19769994,195.21,195.14,23.776884]
[1735186858552,14.19769994,195.21,195.14,14.19769994]
[1735186859571,14.19769994,195.21,195.14,23.776884]
[1735186859970,14.19769994,195.19,195.11,0.76853975]
[1735186860147,14.19769994,195.17,195.09,35.83879994]
[1735186861675,14.19769994,195.17,195.1,23.776884]
[1735186862474,14.19769994,195.19,195.11,14.19769994]
[1735186863479,14.19769994,195.21,195.14,23.776884]
[1735186863848,14.19769994,195.19,195.13,0.7684073]
[1735186864065,0.70013626,195.18,195.1,0.76858253]
[1735186864262,0.70013626,195.18,195.09,21.6411]
[1735186864263,14.19769994,195.16,195.09,1.6411]
[1735186864464,14.19769994,195.17,195.09,15.83879994]
[1735186865276,14.8978362,195.16,195.09,1.6411]
[1735186865660,14.19769994,195.15,195.09,1.6411]
[1735186868175,34.19769994,195.19,195.1,37.97458394]
[1735186868893,14.19769994,195.19,195.1,37.97458394]
[1735186869378,14.19769994,195.17,195.1,37.97458394]
[1735186871879,14.8978362,195.21,195.13,23.776884]
[1735186872181,14.19769994,195.21,195.15,23.776884]
[1735186873579,0.70013626,195.24,195.16,1.5274]
[1735186873790,14.19769994,195.22,195.16,1.5274]
[1735186880389,9.07982143,195.22,195.16,1.5274]
[1735186882694,9.07982143,195.2,195.16,1.5274]
[1735186882993,9.07982143,195.2,195.12,9.07982143]
[1735186883290,9.07982143,195.16,195.07,9.07982143]
[1735186883493,9.07982143,195.14,195.07,9.07982143]
[1735186884872,9.07982143,195.14,195.07,9.84856054]
[1735186885070,0.70013626,195.19,195.09,9.07982143]
[1735186885279,9.07982143,195.19,195.11,9.07982143]
[1735186886181,9.07982143,195.19,195.12,23.776884]
[1735186887600,0.70013626,195.21,195.14,23.776884]
[1735186887916,9.07982143,195.23,195.16,23.776884]
[1735186888272,14.18610416,195.22,195.15,37.96298816]
[1735186888603,14.18610416,195.22,195.15,23.776884]
[1735186888907,14.18610416,195.2,195.14,1.6646]
[1735186889610,14.18610416,195.2,195.15,23.776884]
[1735186889932,14.18610416,195.22,195.15,23.776884]
[1735186891987,14.18610416,195.27,195.19,14.18610416]
[1735186892506,14.18610416,195.25,195.17,37.96298816]
[1735186895908,14.18610416,195.25,195.17,38.73129007]
[1735186896113,14.18610416,195.23,195.17,23.776884]
[1735186896288,14.18610416,195.23,195.16,23.776884]
[1735186899900,0.70013626,195.22,195.16,23.776884]
[1735186900207,0.70013626,195.22,195.14,1.6646]
[1735186900208,14.18610416,195.21,195.14,1.6646]
[1735186900586,0.70013626,195.2,195.14,1.6646]
[1735186901415,14.18610416,195.21,195.14,1.6646]
[1735186901808,0.70013626,195.2,195.14,1.6646]
[1735186902007,0.70013626,195.2,195.14,23.776884]
[1735186905924,14.18610416,195.21,195.14,23.776884]
[1735186906109,14.18610416,195.23,195.15,14.18610416]
[1735186906419,0.70013626,195.22,195.15,14.18610416]
[1735186907725,14.18610416,195.21,195.13,37.96298816]
[1735186908017,14.18610416,195.19,195.11,14.18610416]
[1735186908229,9.78381808,195.18,195.1,9.08368182]
[1735186909323,9.78381808,195.18,195.11,23.776884]
[1735186910325,12.93479,195.17,195.1,9.08368182]
[1735186910527,9.08368182,195.14,195.06,9.08368182]
[1735186910704,9.78381808,195.13,195.05,9.08368182]
[1735186911710,9.78381808,195.13,195.06,23.776884]
[1735186912446,0.70013626,195.13,195.06,9.08368182]
[1735186912624,2.30703626,195.16,195.09,9.08368182]
[1735186912831,11.39071808,195.16,195.08,9.08368182]
[1735186914621,9.08368182,195.15,195.08,9.08368182]
[1735186915424,9.78381808,195.15,195.08,9.08368182]
[1735186915728,0.70013626,195.15,195.08,9.08368182]
[1735186916322,0.70013626,195.15,195.05,54.54560806]
[1735186916323,0.70013626,195.15,195.09,9.08368182]
[1735186916521,9.08368182,195.19,195.11,9.08368182]
[1735186916719,9.78381808,195.19,195.12,9.08368182]
[1735186917432,1.5912,195.21,195.12,9.08368182]
[1735186917607,9.78381808,195.2,195.13,9.08368182]
[1735186918230,0.70013626,195.2,195.13,9.08368182]
[1735186918722,9.78381808,195.2,195.13,9.08368182]
[1735186920032,9.78381808,195.2,195.12,9.08368182]
[1735186920606,9.78381808,195.2,195.13,9.08368182]
[1735186922125,0.70013626,195.2,195.14,32.86056582]
[1735186922331,9.08368182,195.24,195.17,9.08368182]
[1735186922731,9.78381808,195.25,195.17,9.08368182]
[1735186923107,9.08368182,195.24,195.17,9.08368182]
[1735186923340,0.70013626,195.23,195.17,9.08368182]
[1735186923640,9.08368182,195.21,195.14,23.776884]
[1735186924010,9.08368182,195.21,195.14,32.86056582]
[1735186924341,9.08368182,195.22,195.15,9.08368182]
[1735186924543,0.70013626,195.21,195.15,9.08368182]
[1735186924836,9.08368182,195.22,195.15,9.08368182]
[1735186925020,0.70013626,195.21,195.14,23.776884]
[1735186925444,9.08368182,195.22,195.14,23.776884]
[1735186925814,9.08368182,195.22,195.15,9.08368182]
[1735186926012,0.70013626,195.26,195.18,23.776884]
[1735186926237,9.08368182,195.24,195.18,23.776884]
[1735186927513,9.08368182,195.25,195.18,23.776884]
[1735186927712,9.08368182,195.25,195.19,9.08368182]
[1735186928146,15.64788182,195.27,195.2,23.776884]
[1735186928313,6.5642,195.27,195.2,32.86056582]
[1735186928513,15.64788182,195.27,195.2,32.86056582]
[1735186928714,15.64788182,195.27,195.19,62.86056582]
[1735186929347,9.08368182,195.22,195.14,30.0]
[1735186929527,9.08368182,195.23,195.15,9.08368182]
[1735186930550,9.08368182,195.23,195.16,23.776884]
[1735186931055,9.08368182,195.23,195.15,0.76836062]
[1735186931056,9.78381808,195.23,195.15,9.08368182]
[1735186933952,9.08368182,195.22,195.15,9.08368182]
[1735186934454,2.31693626,195.24,195.17,9.08368182]
[1735186934618,6.5642,195.27,195.2,23.776884]
[1735186934619,15.64788182,195.27,195.2,23.776884]
[1735186936361,2.31693626,195.3,195.22,23.776884]
[1735186936362,9.08368182,195.29,195.22,23.776884]
[1735186936657,9.08368182,195.28,195.22,23.776884]
[1735186938623,9.08368182,195.28,195.21,23.776884]
[1735186938851,8.68973626,195.36,195.28,30.0]
[1735186939155,8.68973626,195.42,195.31,23.776884]
[1735186939358,9.08368182,195.37,195.26,30.0]
[1735186939572,9.08368182,195.33,195.24,30.0]
[1735186939862,9.08368182,195.31,195.24,9.08368182]
[1735186940067,9.08368182,195.31,195.24,23.776884]
[1735186940263,9.78381808,195.3,195.23,9.08368182]
[1735186940753,9.08368182,195.3,195.23,9.08368182]
[1735186941153,9.08368182,195.29,195.21,0.76813131]
[1735186941356,9.08368182,195.29,195.2,30.0]
[1735186941357,9.08368182,195.27,195.2,9.08368182]
[1735186941969,9.78381808,195.26,195.18,9.08368182]
[1735186942270,9.08368182,195.23,195.14,1.5223]
[1735186942499,0.70013626,195.22,195.15,9.08368182]
[1735186942964,9.08368182,195.24,195.17,9.08368182]
[1735186943277,0.70013626,195.23,195.17,9.08368182]
[1735186943575,9.78381808,195.23,195.15,9.08368182]
[1735186944187,9.78381808,195.23,195.16,9.08368182]
[1735186945279,9.78381808,195.23,195.15,9.85213183]
[1735186946394,9.08368182,195.21,195.13,9.8521385]
[1735186946596,9.08368182,195.18,195.09,30.0]
[1735186946799,0.70013626,195.23,195.12,9.08368182]
[1735186946966,2.31693626,195.25,195.18,9.08368182]
[1735186947164,10.70048182,195.25,195.18,9.08368182]
[1735186947364,1.6168,195.25,195.18,9.08368182]
[1735186947598,10.70048182,195.25,195.17,9.08368182]
[1735186947965,1.6168,195.25,195.17,9.08368182]
[1735186948167,1.6168,195.25,195.18,23.776884]
[1735186948392,9.08368182,195.24,195.18,23.776884]
[1735186948599,6.3728,195.26,195.19,9.08368182]
[1735186949088,15.45648182,195.26,195.19,9.08368182]
[1735186949278,6.3728,195.26,195.19,9.08368182]
[1735186949688,6.3728,195.26,195.2,23.776884]
[1735186951499,7.07293626,195.26,195.19,9.08368182]
[1735186951671,6.3728,195.26,195.19,9.08368182]
[1735186953474,7.07293626,195.26,195.19,9.08368182]
[1735186956371,9.08368182,195.23,195.14,0.76829579]
[1735186956679,9.08368182,195.19,195.11,9.08368182]
[1735186956887,6.3728,195.26,195.18,9.08368182]
[1735186957087,9.78381808,195.25,195.15,0.76834137]
[1735186957292,9.78381808,195.25,195.17,9.08368182]
[1735186957471,9.08368182,195.23,195.17,9.08368182]
[1735186957675,9.08368182,195.24,195.16,9.08368182]
[1735186958375,0.70013626,195.23,195.17,23.776884]
[1735186960314,9.08368182,195.21,195.11,30.76841327]
[1735186960602,9.08368182,195.18,195.1,9.08368182]
[1735186961014,9.78381808,195.17,195.07,30.7686429]
[1735186961307,9.08368182,195.17,195.1,9.08368182]
[1735186961474,9.78381808,195.19,195.12,9.08368182]
[1735186961677,9.08368182,195.19,195.12,9.08368182]
[1735186962189,29.08368182,195.2,195.12,9.08368182]
[1735186962401,11.41651808,195.21,195.14,9.08368182]
[1735186962589,9.08368182,195.2,195.13,9.08368182]
[1735186962913,0.70013626,195.19,195.13,23.776884]
[1735186963298,9.78381808,195.19,195.13,23.776884]
[1735186965384,9.08368182,195.19,195.13,23.776884]
[1735186965586,9.78381808,195.18,195.1,9.85224854]
[1735186965909,9.08368182,195.18,195.1,9.85224854]
[1735186966207,29.08368182,195.2,195.12,9.08368182]
[1735186966510,9.78381808,195.19,195.12,9.08368182]
[1735186966810,9.78381808,195.19,195.11,9.08368182]
[1735186967192,9.08368182,195.18,195.11,9.08368182]
[1735186967581,9.78381808,195.19,195.11,9.08368182]
[1735186969721,9.08368182,195.18,195.11,9.08368182]
[1735186971825,9.78381808,195.19,195.11,9.08368182]
[1735186974429,9.08368182,195.18,195.11,9.08368182]
[1735186974728,1.6327,195.21,195.13,9.08368182]
[1735186974910,9.08368182,195.2,195.13,9.08368182]
[1735186976123,9.08368182,195.23,195.16,9.08368182]
[1735186976516,9.08368182,195.22,195.15,9.08368182]
[1735186976815,9.08368182,195.22,195.16,23.776884]
[1735186977338,9.08368182,195.22,195.15,32.86056582]
[1735186977635,0.70013626,195.25,195.15,32.86056582]
[1735186977824,9.08368182,195.25,195.18,9.08368182]
[1735186978000,16.97708182,195.26,195.19,32.86056582]
[1735186978199,6.3728,195.26,195.19,32.86056582]
[1735186978406,9.08368182,195.28,195.21,32.86056582]
[1735186978726,10.60428182,195.3,195.23,23.776884]
[1735186978918,10.60428182,195.3,195.24,0.76805374]
[1735186979118,9.08368182,195.26,195.18,30.0]
[1735186979337,9.08368182,195.24,195.18,23.776884]
[1735186979539,9.08368182,195.25,195.18,32.86056582]
[1735186979714,9.08368182,195.26,195.18,32.86056582]
[1735186979915,9.08368182,195.25,195.18,32.86056582]
[1735186980434,9.08368182,195.28,195.21,9.08368182]
[1735186981040,2.22073626,195.3,195.22,23.776884]
[1735186981238,2.22073626,195.3,195.24,23.776884]
[1735186981239,9.08368182,195.3,195.24,23.776884]
[1735186981406,9.08368182,195.29,195.24,23.776884]
[1735186981715,9.08368182,195.29,195.23,23.776884]
[1735186981919,6.5091,195.31,195.22,9.85184692]
[1735186981920,9.08368182,195.28,195.22,23.776884]
[1735186982530,9.08368182,195.29,195.22,32.86056582]
[1735186982725,9.08368182,195.29,195.23,0.76814471]
[1735186983236,9.08368182,195.29,195.22,32.86056582]
[1735186983421,9.08368182,195.28,195.22,23.776884]
[1735186984927,9.08368182,195.3,195.24,23.776884]
[1735186986137,2.22073626,195.35,195.25,30.0]
[1735186986336,2.22073626,195.35,195.26,32.86056582]
[1735186986643,9.08368182,195.33,195.28,23.776884]
[1735186987341,9.08368182,195.34,195.28,53.776884]
[1735186987518,9.08368182,195.34,195.28,23.776884]
[1735186987838,9.08368182,195.34,195.27,23.776884]
[1735186988030,9.08368182,195.33,195.27,23.776884]
[1735186988230,9.08368182,195.34,195.27,23.776884]
[1735186988631,9.08368182,195.34,195.26,0.76792481]
[1735186988836,9.08368182,195.32,195.25,0.76799786]
[1735186989136,0.70013626,195.35,195.26,23.776884]
[1735186989431,9.08368182,195.35,195.3,23.776884]
[1735186989639,9.08368182,195.35,195.28,23.776884]
[1735186990634,9.08368182,195.35,195.3,23.776884]
[1735186991033,9.08368182,195.35,195.29,23.776884]
[1735186991236,9.08368182,195.35,195.28,9.08368182]
[1735186991418,9.08368182,195.3,195.22,30.0]
[1735186991913,9.08368182,195.3,195.22,39.08368182]
[1735186992543,9.08368182,195.31,195.24,9.08368182]
[1735186992744,9.08368182,195.31,195.25,23.776884]
[1735186994342,9.08368182,195.29,195.21,0.76809901]
[1735186994530,9.08368182,195.29,195.21,9.08368182]
[1735186994930,9.08368182,195.25,195.18,9.08368182]
[1735186995229,0.70013626,195.28,195.18,9.08368182]
[1735186995531,9.08368182,195.26,195.18,9.08368182]
[1735186996241,9.08368182,195.26,195.2,9.08368182]
[1735186997549,2.34823626,195.3,195.2,9.08368182]
[1735186997550,31.43191808,195.3,195.21,32.86056582]
[1735186997845,9.08368182,195.28,195.21,32.86056582]
[1735186998039,9.08368182,195.28,195.19,0.76820364]
[1735186998221,0.70013626,195.27,195.19,29.08368182]
[1735186999243,9.08368182,195.28,195.19,29.08368182]
[1735186999440,9.08368182,195.28,195.2,0.76820918]
[1735186999637,10.73178182,195.3,195.22,23.776884]
[1735187001925,9.08368182,195.3,195.23,62.86056582]
[1735187002127,1.6481,195.35,195.26,23.776884]
[1735187002326,9.08368182,195.34,195.26,23.776884]
[1735187002647,9.08368182,195.34,195.26,24.5448468]
[1735187004045,0.70013626,195.33,195.26,23.776884]
[1735187004627,9.08368182,195.34,195.26,23.776884]
[1735187004821,9.08368182,195.34,195.26,24.54486871]
[1735187005355,0.70013626,195.33,195.26,23.776884]
[1735187005726,9.08368182,195.34,195.26,23.776884]
[1735187007144,0.70013626,195.37,195.29,20.0]
[1735187007360,9.08368182,195.35,195.29,20.0]
[1735187008153,9.08368182,195.35,195.3,23.776884]
[1735187013053,9.08368182,195.37,195.3,23.776884]
[1735187014850,0.70013626,195.4,195.32,30.0]
[1735187015055,9.08368182,195.41,195.33,33.62831713]
[1735187020152,9.08368182,195.41,195.33,32.86056582]
[1735187020767,9.08368182,195.39,195.31,10.74248182]
[1735187020969,0.70013626,195.38,195.31,10.74248182]
[1735187021162,9.08368182,195.39,195.31,1.6588]
[1735187021365,9.08368182,195.39,195.31,10.74248182]
[1735187021668,0.70013626,195.38,195.31,10.74248182]
[1735187021873,0.70013626,195.38,195.31,1.6588]
[1735187022057,0.70013626,195.38,195.31,10.74248182]
[1735187023970,9.08368182,195.34,195.27,20.0]
[1735187024347,9.08368182,195.34,195.27,29.08368182]
[1735187025086,9.08368182,195.35,195.27,29.08368182]
[1735187026776,0.70013626,195.34,195.27,29.08368182]
[1735187029275,9.78381808,195.34,195.27,20.0]
[1735187030377,9.78381808,195.34,195.28,23.776884]
[1735187031485,9.08368182,195.33,195.26,1.6593]
[1735187032078,9.08368182,195.35,195.27,32.86056582]
[1735187032965,9.08368182,195.36,195.27,33.62847142]
[1735187033576,9.08368182,195.36,195.29,39.08368182]
[1735187033764,9.08368182,195.38,195.3,32.86056582]
[1735187033965,9.08368182,195.36,195.3,23.776884]
[1735187034478,0.70013626,195.35,195.29,9.08368182]
[1735187034675,0.70013626,195.35,195.27,32.86056582]
[1735187035276,9.08368182,195.34,195.27,32.86056582]
[1735187035584,9.08368182,195.36,195.27,63.62852598]
[1735187035786,0.70013626,195.35,195.27,33.62852598]
[1735187038490,9.08368182,195.34,195.27,23.776884]
[1735187038684,0.70013626,195.33,195.27,23.776884]
[1735187039660,9.08368182,195.34,195.27,23.776884]
[1735187044992,20.0,195.36,195.27,23.776884]
[1735187045285,9.08368182,195.35,195.27,23.776884]
[1735187045459,0.70013626,195.38,195.3,9.08368182]
[1735187045662,9.08368182,195.39,195.31,23.776884]
[1735187046882,9.08368182,195.37,195.31,23.776884]
[1735187048490,9.08368182,195.38,195.31,23.776884]
[1735187050087,9.08368182,195.38,195.31,24.54464572]
[1735187050573,9.08368182,195.37,195.31,23.776884]
[1735187051490,9.08368182,195.38,195.31,23.776884]
[1735187053867,0.70013626,195.41,195.31,23.776884]
[1735187053868,9.08368182,195.37,195.31,23.776884]
[1735187054363,9.08368182,195.38,195.31,23.776884]
[1735187054570,9.08368182,195.35,195.26,1.6593]
[1735187054783,9.78381808,195.34,195.26,10.74298182]
[1735187057069,9.78381808,195.34,195.27,23.776884]
[1735187057696,9.08368182,195.34,195.27,23.776884]
[1735187059783,9.08368182,195.34,195.27,32.86056582]
[1735187060376,0.70013626,195.36,195.27,32.86056582]
[1735187060578,0.70013626,195.36,195.27,23.776884]
[1735187060789,9.08368182,195.33,195.27,23.776884]
[1735187062471,0.70013626,195.36,195.27,23.776884]
[1735187062677,20.0,195.38,195.29,23.776884]
[1735187062877,9.08368182,195.34,195.29,23.776884]
[1735187063085,0.70013626,195.37,195.28,32.86056582]
[1735187063291,9.08368182,195.35,195.27,32.86056582]
[1735187063492,9.08368182,195.35,195.27,344.86056582]
[1735187064076,9.08368182,195.35,195.27,32.86056582]
[1735187064277,9.78381808,195.34,195.27,32.86056582]
[1735187064581,9.08368182,195.34,195.27,32.86056582]
[1735187065177,9.08368182,195.34,195.27,23.776884]
[1735187066196,0.70013626,195.37,195.27,32.86056582]
[1735187066197,9.08368182,195.35,195.27,32.86056582]
[1735187067001,9.08368182,195.35,195.29,23.776884]
[1735187067317,9.08368182,195.35,195.27,32.86056582]
[1735187070006,9.08368182,195.36,195.28,9.08368182]
[1735187070183,9.08368182,195.36,195.29,23.776884]
[1735187071304,9.08368182,195.35,195.29,23.776884]
[1735187073895,9.08368182,195.36,195.29,9.08368182]
[1735187074405,0.70013626,195.37,195.29,9.08368182]
[1735187074608,9.08368182,195.36,195.29,9.08368182]
[1735187075792,9.08368182,195.35,195.28,32.86056582]
[1735187077704,9.08368182,195.36,195.29,9.08368182]
[1735187077889,9.08368182,195.36,195.3,23.776884]
[1735187078488,9.45651007,195.44,195.26,1.6593]
[1735187078489,7.04493626,195.43,195.34,9.08368182]
[1735187078700,9.08368182,195.42,195.35,9.08368182]
[1735187078902,9.78381808,195.41,195.34,9.08368182]
[1735187079103,9.08368182,195.4,195.34,9.08368182]
[1735187079509,9.78381808,195.41,195.34,9.08368182]
[1735187081516,9.08368182,195.4,195.34,9.08368182]
[1735187082310,9.08368182,195.41,195.34,9.08368182]
[1735187082512,9.08368182,195.42,195.35,9.08368182]
[1735187084503,9.08368182,195.41,195.35,9.08368182]
[1735187085218,9.08368182,195.41,195.34,32.86056582]
[1735187085415,9.08368182,195.42,195.34,32.86056582]
[1735187085618,9.08368182,195.42,195.36,23.776884]
[1735187086195,9.08368182,195.41,195.36,23.776884]
[1735187086696,9.08368182,195.41,195.35,23.776884]
[1735187089324,6.1794,195.47,195.33,1.5439]
[1735187089325,9.08368182,195.38,195.33,1.5439]
[1735187089524,9.08368182,195.38,195.31,9.08368182]
[1735187090026,9.08368182,195.39,195.32,29.08368182]
[1735187090524,9.08368182,195.35,195.29,313.5439]
[1735187090701,9.08368182,195.35,195.27,39.08368182]
[1735187091103,9.08368182,195.33,195.25,30.0]
[1735187091306,9.08368182,195.33,195.26,9.08368182]
[1735187092204,9.08368182,195.29,195.19,39.54380625]
[1735187092416,0.70013626,195.28,195.21,9.08368182]
[1735187092601,9.08368182,195.29,195.22,9.08368182]
[1735187094827,9.08368182,195.3,195.22,9.08368182]
[1735187095010,0.70013626,195.29,195.22,9.08368182]